[Event "36th European Club Cup 2021"]
[Site "Struga"]
[Date "2021.09.22"]
[Round "5.56"]
[White "Subelj, Jan"]
[Black "Saraci, Korab"]
[Result "1-0"]
[ECO "C42"]
[WhiteElo "2415"]
[BlackElo "2154"]
[Annotator "NA"]
[PlyCount "77"]
[EventDate "2021.09.18"]
[EventType "team-tourn"]
[EventCountry "MKD"]
[SourceTitle "playchess.com"]
[Source "ChessBase"]
[SourceQuality "1"]
[TimeControl "40/5400+30:1800+30"]

1. e4 {[%emt 0:00:20]} e5 {[%emt 0:00:04]} 2. Nf3 {[%emt 0:00:30]} Nf6 {
[%emt 0:00:04]} 3. Nxe5 {[%emt 0:01:31]} d6 {[%emt 0:00:06]} 4. Nf3 {[%emt 0:
00:09]} Nxe4 {[%emt 0:00:08]} 5. Nc3 {[%emt 0:01:00]} Nxc3 {[%emt 0:00:06]} 6.
dxc3 {[%emt 0:00:07]} Be7 {[%emt 0:00:05]} 7. Be3 {[%emt 0:00:32]} Nd7 {
[%emt 0:00:11]} 8. Qd2 {[%emt 0:00:48]} O-O {[%emt 0:00:15]} 9. O-O-O {[%emt 0:
00:08]} Nf6 {[%emt 0:03:12]} 10. Bd3 {[%emt 0:01:17]} c5 {[%emt 0:03:56]} 11.
Bg5 {[%emt 0:05:30]} Qa5 {[%emt 0:10:29]} 12. a3 {[%emt 0:03:58]} Be6 {[%emt 0:
08:16]} 13. Rhe1 {[%emt 0:04:21]} Rfe8 {[%emt 0:02:07]} 14. Qf4 {[%emt 0:04:00]
} c4 {[%emt 0:10:29]} 15. Bxf6 {[%emt 0:16:37]} Bxf6 {[%emt 0:26:42]} 16. Bxc4
{[%emt 0:01:51]} d5 {[%emt 0:01:23]} 17. Bb3 {[%emt 0:02:26]} Qc5 {[%emt 0:06:
37]} 18. Nd4 {[%emt 0:13:36]} Bd7 {[%emt 0:01:28]} 19. Kb1 {[%emt 0:04:39]} h6
{[%emt 0:05:33]} 20. Nf5 {[%emt 0:02:11]} Bg5 {[%emt 0:04:54]} 21. Rxe8+ {
[%emt 0:01:59]} Rxe8 {[%emt 0:00:36]} 22. Qf3 {[%emt 0:00:43]} Bc6 {[%emt 0:05:
37]} 23. h4 {[%emt 0:01:41]} d4 {[%emt 0:01:27]} 24. Qh3 {[%emt 0:00:19]} Bf6 {
[%emt 0:02:30]} 25. cxd4 {[%emt 0:00:17]} Qa5 {[%emt 0:00:57]} 26. Nd6 {
[%emt 0:01:42]} Re7 {[%emt 0:02:02]} 27. Qc8+ {[%emt 0:09:44]} Kh7 {[%emt 0:00:
06]} 28. Nxf7 {[%emt 0:00:22]} Re8 {[%emt 0:02:28]} 29. Qh3 {[%emt 0:22:42]}
Qh5 {[%emt 0:00:52]} 30. Qd3+ {[%emt 0:00:00]} Be4 {[%emt 0:00:22]} 31. Qd2 {
[%emt 0:00:00]} Bg6 {[%emt 0:00:41]} 32. Ne5 {[%emt 0:00:00]} Rd8 {[%emt 0:00:
34]} 33. g4 {[%emt 0:00:00]} Qxh4 {[%emt 0:00:16]} 34. Nxg6 {[%emt 0:00:00]}
Qxg4 {[%emt 0:00:28]} 35. Nf4 {[%emt 0:00:00]} Rxd4 {[%emt 0:00:17]} 36. Nd3 {
[%emt 0:00:00]} h5 {[%emt 0:00:47]} 37. Re1 {[%emt 0:00:00]} h4 {[%emt 0:00:49]
} 38. Qe3 {[%emt 0:00:00]} Qg2 {[%emt 0:01:44]} 39. Qe8 {[%emt 0:00:00]} 1-0

[Event "36th European Club Cup 2021"]
[Site "Struga"]
[Date "2021.09.22"]
[Round "5.57"]
[White "Salihu, Sami"]
[Black "Mikhalchishin, Adrian"]
[Result "0-1"]
[ECO "A48"]
[WhiteElo "2207"]
[BlackElo "2455"]
[Annotator "ChessBase"]
[PlyCount "120"]
[EventDate "2021.09.18"]
[EventType "team-tourn"]
[EventCountry "MKD"]
[SourceTitle "playchess.com"]
[Source "ChessBase"]
[SourceQuality "1"]
[TimeControl "40/5400+30:1800+30"]

1. d4 {[%emt 0:00:04]} Nf6 {[%emt 0:00:10]} 2. Nf3 {[%emt 0:00:18]} g6 {
[%emt 0:00:06]} 3. Bg5 {[%emt 0:00:30]} Bg7 {[%emt 0:00:48]} 4. Bxf6 {[%emt 0:
00:10]} Bxf6 {[%emt 0:01:30]} 5. e4 {[%emt 0:00:06]} c5 {[%emt 0:00:37]} 6. e5
{[%emt 0:03:51]} Bg7 {[%emt 0:00:58]} 7. dxc5 {[%emt 0:00:09]} Nc6 {[%emt 0:02:
46]} 8. Qd5 {[%emt 0:00:13]} Qc7 {[%emt 0:02:13]} 9. Nc3 {[%emt 0:00:08]} Nxe5
{[%emt 0:00:17]} 10. Nxe5 {[%emt 0:03:41]} Qxe5+ {[%emt 0:01:34]} 11. Qxe5 {
[%emt 0:00:08]} Bxe5 {[%emt 0:00:01]} 12. O-O-O {[%emt 0:00:12]} b6 {[%emt 0:
02:05]} 13. Na4 {[%emt 0:00:22]} bxc5 {[%emt 0:06:44]} 14. Nxc5 {[%emt 0:00:19]
} Rb8 {[%emt 0:00:57]} 15. b3 {[%emt 0:00:30]} d6 {[%emt 0:01:02]} 16. Na6 {
[%emt 0:00:08]} Rb6 {[%emt 0:10:04]} 17. Nc7+ {[%emt 0:00:32]} Kd7 {[%emt 0:00:
45]} 18. Nd5 {[%emt 0:00:10]} Rb8 {[%emt 0:00:04]} 19. f4 {[%emt 0:01:38]} Bg7
{[%emt 0:00:45]} 20. g3 {[%emt 0:04:36]} e6 {[%emt 0:02:49]} 21. Ne3 {[%emt 0:
00:26]} Bb7 {[%emt 0:06:09]} 22. Bg2 {[%emt 0:00:36]} Bxg2 {[%emt 0:04:39]} 23.
Nxg2 {[%emt 0:02:49]} Rhc8 {[%emt 0:01:09]} 24. Rhe1 {[%emt 0:02:49]} Bc3 {
[%emt 0:04:46]} 25. Re2 {[%emt 0:02:50]} Rb5 {[%emt 0:05:39]} 26. Rd3 {[%emt 0:
03:11]} d5 {[%emt 0:02:00]} 27. Ne3 {[%emt 0:00:35]} Rbc5 {[%emt 0:01:16]} 28.
Nc4 {[%emt 0:00:44]} Bf6 {[%emt 0:03:32]} 29. Ne5+ {[%emt 0:01:31]} Ke7 {
[%emt 0:00:51]} 30. Rd4 {[%emt 0:03:42]} g5 {[%emt 0:03:20]} 31. Kd1 {[%emt 0:
01:22]} R8c7 {[%emt 0:06:52]} 32. a4 {[%emt 0:02:09]} Rc3 {[%emt 0:04:47]} 33.
fxg5 {[%emt 0:02:35]} Bxg5 {[%emt 0:04:41]} 34. Rd3 {[%emt 0:01:44]} f6 {
[%emt 0:03:55]} 35. Rxc3 {[%emt 0:00:08]} Rxc3 {[%emt 0:00:01]} 36. Nd3 {
[%emt 0:00:16]} Kd6 {[%emt 0:00:17]} 37. Rf2 {[%emt 0:01:07]} f5 {[%emt 0:01:
25]} 38. Rf3 {[%emt 0:00:55]} d4 {[%emt 0:02:26]} 39. h4 {[%emt 0:00:07]} Be3 {
[%emt 0:00:18]} 40. Nf4 {[%emt 0:00:00]} Ke5 {[%emt 0:00:00]} 41. Nd3+ {
[%emt 0:17:51]} Ke4 {[%emt 0:07:36]} 42. Rf1 {[%emt 0:00:33]} Rc7 {[%emt 0:00:
52]} 43. Nf4 {[%emt 0:01:06]} e5 {[%emt 0:07:50]} 44. Ne6 {[%emt 1:15:39]} Rc6
{[%emt 0:04:58]} 45. Ng5+ {[%emt 0:00:00]} Bxg5 {[%emt 0:00:07]} 46. hxg5 {
[%emt 0:00:00]} Rg6 {[%emt 0:00:27]} 47. Re1+ {[%emt 0:00:00]} Kd5 {[%emt 0:00:
14]} 48. Rh1 {[%emt 0:00:00]} Rxg5 {[%emt 0:01:26]} 49. Rxh7 {[%emt 0:00:00]}
Rxg3 {[%emt 0:02:53]} 50. Rxa7 {[%emt 0:00:00]} Rg1+ {[%emt 0:00:06]} 51. Kd2 {
[%emt 0:00:00]} Rg2+ {[%emt 0:00:29]} 52. Kc1 {[%emt 0:00:00]} e4 {[%emt 0:07:
19]} 53. a5 {[%emt 0:00:00]} e3 {[%emt 0:00:46]} 54. Re7 {[%emt 0:00:00]} Rg1+
{[%emt 0:01:02]} 55. Kb2 {[%emt 0:00:00]} f4 {[%emt 0:00:20]} 56. a6 {[%emt 0:
00:00]} f3 {[%emt 0:00:18]} 57. a7 {[%emt 0:00:00]} Rg8 {[%emt 0:00:06]} 58.
Rd7+ {[%emt 0:00:00]} Kc6 {[%emt 0:00:31]} 59. Rg7 {[%emt 0:00:00]} Ra8 {
[%emt 0:00:09]} 60. Rf7 {[%emt 0:00:00]} e2 {[%emt 0:00:14]} 0-1

[Event "36th European Club Cup 2021"]
[Site "Struga"]
[Date "2021.09.22"]
[Round "5.59"]
[White "Jashari, Ardian"]
[Black "Buzeti, Jernej"]
[Result "0-1"]
[ECO "B95"]
[WhiteElo "2109"]
[BlackElo "2236"]
[Annotator "NA"]
[PlyCount "104"]
[EventDate "2021.09.18"]
[EventType "team-tourn"]
[EventCountry "MKD"]
[SourceTitle "playchess.com"]
[Source "ChessBase"]
[SourceQuality "1"]
[TimeControl "40/5400+30:1800+30"]

1. e4 {[%emt 0:00:06]} c5 {[%emt 0:00:21]} 2. Nf3 {[%emt 0:00:12]} d6 {[%emt 0:
00:22]} 3. d4 {[%emt 0:01:05]} cxd4 {[%emt 0:00:09]} 4. Nxd4 {[%emt 0:00:14]}
Nf6 {[%emt 0:00:09]} 5. Nc3 {[%emt 0:00:15]} a6 {[%emt 0:00:43]} 6. Bg5 {
[%emt 0:05:39]} e6 {[%emt 0:00:42]} 7. Qf3 {[%emt 0:00:56]} Nbd7 {[%emt 0:05:
06]} 8. O-O-O {[%emt 0:02:06]} Qc7 {[%emt 0:02:30]} 9. Bxf6 {[%emt 0:01:14]}
Nxf6 {[%emt 0:02:29]} 10. g4 {[%emt 0:04:16]} b5 {[%emt 0:33:19]} 11. g5 {
[%emt 0:05:06]} Nd7 {[%emt 0:00:57]} 12. Qh3 {[%emt 0:10:57]} b4 {[%emt 0:13:
32]} 13. g6 {[%emt 0:24:54]} Ne5 {[%emt 0:12:17]} 14. gxf7+ {[%emt 0:04:48]}
Nxf7 {[%emt 0:10:58]} 15. Nxe6 {[%emt 0:09:13]} Qe7 {[%emt 0:02:12]} 16. Nd5 {
[%emt 0:04:01]} Bxe6 {[%emt 0:00:54]} 17. Nxe7 {[%emt 0:01:17]} Bxh3 {[%emt 0:
00:06]} 18. Nd5 {[%emt 0:00:13]} Bxf1 {[%emt 0:00:13]} 19. Nc7+ {[%emt 0:00:43]
} Kd7 {[%emt 0:00:09]} 20. Nxa8 {[%emt 0:00:09]} Be2 {[%emt 0:02:59]} 21. Rd4 {
[%emt 0:02:02]} g6 {[%emt 0:07:28]} 22. Nb6+ {[%emt 0:00:15]} Kc6 {[%emt 0:00:
14]} 23. Rxb4 {[%emt 0:05:31]} Bh6+ {[%emt 0:01:47]} 24. Kb1 {[%emt 0:00:01]}
a5 {[%emt 0:00:21]} 25. Rb3 {[%emt 0:00:06]} Rb8 {[%emt 0:00:49]} 26. Nd5 {
[%emt 0:00:15]} Rxb3 {[%emt 0:00:24]} 27. axb3 {[%emt 0:00:12]} Bf3 {[%emt 0:
00:15]} 28. Re1 {[%emt 0:00:16]} Bd2 {[%emt 0:00:24]} 29. Rg1 {[%emt 0:00:15]}
Bxe4 {[%emt 0:00:57]} 30. Nf6 {[%emt 0:00:12]} Bf5 {[%emt 0:00:52]} 31. Nxh7 {
[%emt 0:00:33]} Ne5 {[%emt 0:01:09]} 32. Ng5 {[%emt 0:01:18]} Ng4 {[%emt 0:00:
38]} 33. Nf3 {[%emt 0:00:32]} Bf4 {[%emt 0:00:42]} 34. Nd4+ {[%emt 0:00:31]}
Kd5 {[%emt 0:00:04]} 35. Nxf5 {[%emt 0:01:29]} gxf5 {[%emt 0:00:02]} 36. h4 {
[%emt 0:01:25]} Ke4 {[%emt 0:00:18]} 37. c3 {[%emt 0:02:29]} Kf3 {[%emt 0:00:
06]} 38. b4 {[%emt 0:00:23]} axb4 {[%emt 0:00:07]} 39. cxb4 {[%emt 0:00:06]}
Kxf2 {[%emt 0:00:05]} 40. Rd1 {[%emt 0:00:00]} Ke2 {[%emt 0:00:00]} 41. Rd5 {
[%emt 0:05:36]} Ne3 {[%emt 0:03:41]} 42. Ra5 {[%emt 0:00:52]} Be5 {[%emt 0:00:
43]} 43. Rxe5 {[%emt 0:05:00]} dxe5 {[%emt 0:00:14]} 44. b5 {[%emt 0:00:17]}
Nd5 {[%emt 0:08:09]} 45. h5 {[%emt 0:00:09]} f4 {[%emt 0:00:34]} 46. h6 {
[%emt 0:00:03]} f3 {[%emt 0:00:08]} 47. h7 {[%emt 0:00:03]} f2 {[%emt 0:00:09]}
48. h8=Q {[%emt 0:00:19]} f1=Q+ {[%emt 0:00:15]} 49. Ka2 {[%emt 0:00:10]} Qf4 {
[%emt 0:01:22]} 50. Qh5+ {[%emt 0:01:13]} Kd2 {[%emt 0:00:47]} 51. Qh1 {
[%emt 0:09:15]} Qa4+ {[%emt 0:00:09]} 52. Kb1 {[%emt 0:00:20]} Qd1+ {[%emt 0:
00:38]} 0-1

[Event "36th European Club Cup 2021"]
[Site "Struga"]
[Date "2021.09.22"]
[Round "5.60"]
[White "Bratkovic, Sham"]
[Black "Asllani, Ibrahim"]
[Result "1-0"]
[ECO "E61"]
[WhiteElo "2213"]
[BlackElo "2038"]
[Annotator "NA"]
[PlyCount "75"]
[EventDate "2021.09.18"]
[EventType "team-tourn"]
[EventCountry "MKD"]
[SourceTitle "playchess.com"]
[Source "ChessBase"]
[SourceQuality "1"]
[TimeControl "40/5400+30:1800+30"]

1. d4 {[%emt 0:00:57]} Nf6 {[%emt 0:00:09]} 2. c4 {[%emt 0:00:29]} g6 {[%emt 0:
00:16]} 3. Nc3 {[%emt 0:01:27]} Bg7 {[%emt 0:00:06]} 4. g3 {[%emt 0:03:54]} c5
{[%emt 0:01:16]} 5. Nf3 {[%emt 0:02:58]} cxd4 {[%emt 0:00:16]} 6. Qxd4 {
[%emt 0:01:20]} Nc6 {[%emt 0:00:12]} 7. Qd1 {[%emt 0:00:33]} d6 {[%emt 0:00:19]
} 8. Bg2 {[%emt 0:02:22]} h5 {[%emt 0:00:39]} 9. O-O {[%emt 0:02:22]} Bg4 {
[%emt 0:04:13]} 10. Qa4 {[%emt 0:05:47]} Qd7 {[%emt 0:00:44]} 11. Rd1 {[%emt 0:
06:14]} Bxf3 {[%emt 0:01:34]} 12. Bxf3 {[%emt 0:00:33]} h4 {[%emt 0:00:07]} 13.
Bg2 {[%emt 0:05:51]} hxg3 {[%emt 0:00:08]} 14. hxg3 {[%emt 0:01:16]} Rh5 {
[%emt 0:01:52]} 15. Nb5 {[%emt 0:08:58]} Kf8 {[%emt 0:05:07]} 16. Qb3 {[%emt 0:
10:07]} Ne8 {[%emt 0:00:49]} 17. Nc3 {[%emt 0:13:04]} Bd4 {[%emt 0:03:35]} 18.
Nd5 {[%emt 0:03:45]} e6 {[%emt 0:04:17]} 19. Nf4 {[%emt 0:01:07]} Rh7 {[%emt 0:
00:41]} 20. Be3 {[%emt 0:04:34]} e5 {[%emt 0:01:25]} 21. Nd5 {[%emt 0:02:49]}
Kg7 {[%emt 0:00:25]} 22. Qd3 {[%emt 0:03:17]} f5 {[%emt 0:02:55]} 23. Bxd4 {
[%emt 0:00:26]} Nxd4 {[%emt 0:00:24]} 24. e3 {[%emt 0:00:28]} Ne6 {[%emt 0:00:
19]} 25. b4 {[%emt 0:01:34]} e4 {[%emt 0:03:14]} 26. Qc3+ {[%emt 0:01:07]} Kf7
{[%emt 0:00:38]} 27. c5 {[%emt 0:02:09]} Rc8 {[%emt 0:00:32]} 28. Qa3 {[%emt 0:
00:30]} Rc6 {[%emt 0:00:40]} 29. Qxa7 {[%emt 0:01:07]} g5 {[%emt 0:00:15]} 30.
Qb8 {[%emt 0:02:53]} g4 {[%emt 0:01:12]} 31. Nb6 {[%emt 0:00:50]} Rxb6 {
[%emt 0:01:08]} 32. cxb6 {[%emt 0:00:07]} Ng5 {[%emt 0:00:13]} 33. Rac1 {
[%emt 0:01:57]} Nf3+ {[%emt 0:00:36]} 34. Bxf3 {[%emt 0:02:39]} gxf3 {[%emt 0:
00:13]} 35. Rc7 {[%emt 0:00:22]} Nxc7 {[%emt 0:00:14]} 36. bxc7 {[%emt 0:00:16]
} Qe6 {[%emt 0:02:01]} 37. c8=Q {[%emt 0:00:41]} Qh6 {[%emt 0:00:27]} 38. Qg8+
{[%emt 0:00:31]} 1-0

[Event "36th European Club Cup 2021"]
[Site "Struga"]
[Date "2021.09.23"]
[Round "6.5"]
[White "Alonso Rosell, Alvar"]
[Black "Sakaev, Konstantin"]
[Result "0-1"]
[ECO "D12"]
[WhiteElo "2566"]
[BlackElo "2595"]
[Annotator "ChessBase"]
[PlyCount "142"]
[EventDate "2021.09.18"]
[EventType "team-tourn"]
[EventCountry "MKD"]
[SourceTitle "playchess.com"]
[Source "ChessBase"]
[SourceQuality "1"]
[TimeControl "40/5400+30:1800+30"]

1. d4 {[%emt 0:00:03]} d5 {[%emt 0:00:17]} 2. c4 {[%emt 0:00:04]} c6 {[%emt 0:
00:08]} 3. Nf3 {[%emt 0:00:05]} Nf6 {[%emt 0:00:11]} 4. e3 {[%emt 0:00:03]} Bf5
{[%emt 0:03:25]} 5. Nc3 {[%emt 0:00:51]} e6 {[%emt 0:00:06]} 6. Nh4 {[%emt 0:
00:05]} Bg6 {[%emt 0:00:08]} 7. Be2 {[%emt 0:00:21]} Nbd7 {[%emt 0:01:32]} 8.
O-O {[%emt 0:04:36]} Bd6 {[%emt 0:16:53]} 9. g3 {[%emt 0:05:09]} Bc7 {[%emt 0:
02:59]} 10. Nxg6 {[%emt 0:31:57]} hxg6 {[%emt 0:00:18]} 11. Qc2 {[%emt 0:00:13]
} dxc4 {[%emt 0:05:44]} 12. Bxc4 {[%emt 0:02:00]} Ng4 {[%emt 0:05:35]} 13. h4 {
[%emt 0:07:18]} g5 {[%emt 0:07:21]} 14. Qe2 {[%emt 0:07:15]} Nh6 {[%emt 0:02:
33]} 15. h5 {[%emt 0:10:35]} Nf5 {[%emt 0:02:26]} 16. Rd1 {[%emt 0:02:46]} Qf6
{[%emt 0:15:22]} 17. b4 {[%emt 0:11:35]} g6 {[%emt 0:06:57]} 18. Ne4 {[%emt 0:
13:52]} Qg7 {[%emt 0:01:34]} 19. Nxg5 {[%emt 0:00:32]} Rxh5 {[%emt 0:03:27]}
20. g4 {[%emt 0:00:38]} Rh4 {[%emt 0:12:04]} 21. Qf3 {[%emt 0:00:29]} Nh6 {
[%emt 0:01:12]} 22. Bxe6 {[%emt 0:00:10]} fxe6 {[%emt 0:00:35]} 23. Nxe6 {
[%emt 0:00:04]} Bh2+ {[%emt 0:00:10]} 24. Kf1 {[%emt 0:00:17]} Qe7 {[%emt 0:00:
58]} 25. d5 {[%emt 0:01:03]} cxd5 {[%emt 0:05:19]} 26. Qxd5 {[%emt 0:00:03]}
Be5 {[%emt 0:00:20]} 27. Ba3 {[%emt 0:01:20]} Nxg4 {[%emt 0:00:50]} 28. b5 {
[%emt 0:00:33]} Qf7 {[%emt 0:02:38]} 29. Nc7+ {[%emt 0:00:28]} Bxc7 {[%emt 0:
00:05]} 30. Qxf7+ {[%emt 0:00:07]} Kxf7 {[%emt 0:00:05]} 31. Rxd7+ {[%emt 0:00:
07]} Ke6 {[%emt 0:01:41]} 32. Re7+ {[%emt 0:00:06]} Kf6 {[%emt 0:00:10]} 33.
Rxc7 {[%emt 0:00:06]} Rh2 {[%emt 0:00:28]} 34. Rc4 {[%emt 0:02:00]} Rxf2+ {
[%emt 0:00:20]} 35. Kg1 {[%emt 0:00:04]} Rg2+ {[%emt 0:02:22]} 36. Kxg2 {
[%emt 0:00:05]} Nxe3+ {[%emt 0:00:03]} 37. Kf3 {[%emt 0:00:33]} Nxc4 {[%emt 0:
00:03]} 38. Bc5 {[%emt 0:00:38]} b6 {[%emt 0:00:11]} 39. Bd4+ {[%emt 0:00:12]}
Kf5 {[%emt 0:00:12]} 40. Bc3 {[%emt 0:00:00]} Re8 {[%emt 0:00:00]} 41. Rc1 {
[%emt 0:04:39]} Re3+ {[%emt 0:05:18]} 42. Kf2 {[%emt 0:00:08]} Rh3 {[%emt 0:03:
36]} 43. Bb4 {[%emt 0:07:12]} Ne5 {[%emt 0:01:55]} 44. Kg2 {[%emt 0:00:07]} Re3
{[%emt 0:04:07]} 45. Rf1+ {[%emt 0:06:40]} Ke6 {[%emt 0:01:41]} 46. a3 {
[%emt 0:00:28]} Nd3 {[%emt 0:01:06]} 47. Bf8 {[%emt 0:00:32]} g5 {[%emt 0:01:
18]} 48. a4 {[%emt 0:02:05]} Re4 {[%emt 0:06:56]} 49. Ra1 {[%emt 0:00:39]} Rg4+
{[%emt 0:01:08]} 50. Kh3 {[%emt 0:00:14]} Rf4 {[%emt 0:00:16]} 51. Bg7 {
[%emt 0:00:07]} Kd5 {[%emt 0:01:05]} 52. Kg3 {[%emt 0:00:48]} Nc5 {[%emt 0:00:
56]} 53. a5 {[%emt 0:00:32]} Ne4+ {[%emt 0:01:24]} 54. Kg2 {[%emt 0:00:53]} Kc5
{[%emt 0:03:59]} 55. Be5 {[%emt 0:00:57]} Rf2+ {[%emt 0:00:24]} 56. Kg1 {
[%emt 0:00:01]} Rf7 {[%emt 0:02:44]} 57. axb6 {[%emt 0:03:13]} axb6 {[%emt 0:
00:05]} 58. Re1 {[%emt 0:01:39]} Nd2 {[%emt 0:00:58]} 59. Kg2 {[%emt 0:00:29]}
Kxb5 {[%emt 0:02:06]} 60. Bd4 {[%emt 0:00:05]} Rf5 {[%emt 0:01:24]} 61. Re6 {
[%emt 0:01:26]} Nc4 {[%emt 0:00:04]} 62. Kg3 {[%emt 0:01:11]} Rd5 {[%emt 0:00:
14]} 63. Bf6 {[%emt 0:01:37]} Rd6 {[%emt 0:00:36]} 64. Rxd6 {[%emt 0:00:15]}
Nxd6 {[%emt 0:00:04]} 65. Kg4 {[%emt 0:00:10]} Nf7 {[%emt 0:01:00]} 66. Kf5 {
[%emt 0:00:08]} Kc4 {[%emt 0:00:19]} 67. Kg6 {[%emt 0:00:23]} b5 {[%emt 0:00:
18]} 68. Kxf7 {[%emt 0:00:08]} g4 {[%emt 0:00:05]} 69. Be5 {[%emt 0:00:15]} b4
{[%emt 0:00:49]} 70. Ke6 {[%emt 0:00:17]} b3 {[%emt 0:00:05]} 71. Kf5 {[%emt 0:
00:07]} g3 {[%emt 0:00:09]} 0-1

[Event "36th European Club Cup 2021"]
[Site "Struga"]
[Date "2021.09.23"]
[Round "6.6"]
[White "Goganov, Aleksey"]
[Black "Henderson de La Fuente, Lance"]
[Result "1/2-1/2"]
[ECO "C95"]
[WhiteElo "2559"]
[BlackElo "2491"]
[Annotator "ChessBase"]
[PlyCount "85"]
[EventDate "2021.09.18"]
[EventType "team-tourn"]
[EventCountry "MKD"]
[SourceTitle "playchess.com"]
[Source "ChessBase"]
[SourceQuality "1"]
[TimeControl "40/5400+30:1800+30"]

1. e4 {[%emt 0:00:03]} e5 {[%emt 0:01:41]} 2. Nf3 {[%emt 0:00:06]} Nc6 {
[%emt 0:00:03]} 3. Bb5 {[%emt 0:00:06]} a6 {[%emt 0:01:58]} 4. Ba4 {[%emt 0:00:
06]} Nf6 {[%emt 0:00:03]} 5. O-O {[%emt 0:00:08]} Be7 {[%emt 0:00:59]} 6. Re1 {
[%emt 0:01:23]} b5 {[%emt 0:00:16]} 7. Bb3 {[%emt 0:00:06]} d6 {[%emt 0:00:30]}
8. c3 {[%emt 0:00:08]} O-O {[%emt 0:00:14]} 9. h3 {[%emt 0:00:04]} Nb8 {
[%emt 0:00:34]} 10. d4 {[%emt 0:00:22]} Nbd7 {[%emt 0:00:05]} 11. Nbd2 {
[%emt 0:00:24]} Bb7 {[%emt 0:00:05]} 12. Bc2 {[%emt 0:00:27]} Re8 {[%emt 0:00:
08]} 13. Nf1 {[%emt 0:00:15]} Bf8 {[%emt 0:00:06]} 14. Ng3 {[%emt 0:00:04]} g6
{[%emt 0:00:06]} 15. a4 {[%emt 0:02:48]} c6 {[%emt 0:05:16]} 16. Bg5 {[%emt 0:
02:00]} Qc7 {[%emt 0:02:52]} 17. Qd2 {[%emt 0:02:13]} Bg7 {[%emt 0:00:22]} 18.
Bh6 {[%emt 0:04:51]} Bh8 {[%emt 0:03:03]} 19. b4 {[%emt 0:30:55]} Rad8 {
[%emt 0:08:35]} 20. Bb3 {[%emt 0:00:56]} Nf8 {[%emt 0:13:35]} 21. Ng5 {[%emt 0:
02:16]} Re7 {[%emt 0:02:24]} 22. Rad1 {[%emt 0:05:28]} Rde8 {[%emt 0:01:34]}
23. f4 {[%emt 0:10:53]} Bg7 {[%emt 0:04:33]} 24. Bxg7 {[%emt 0:00:20]} Kxg7 {
[%emt 0:00:02]} 25. axb5 {[%emt 0:16:11]} cxb5 {[%emt 0:01:40]} 26. fxe5 {
[%emt 0:00:04]} dxe5 {[%emt 0:00:07]} 27. d5 {[%emt 0:00:25]} Qb6+ {[%emt 0:07:
16]} 28. Kh2 {[%emt 0:00:20]} Rd8 {[%emt 0:00:28]} 29. Re3 {[%emt 0:03:37]} Ne8
{[%emt 0:02:35]} 30. Rf1 {[%emt 0:02:09]} f6 {[%emt 0:02:20]} 31. Qf2 {[%emt 0:
00:25]} Rd6 {[%emt 0:11:12]} 32. Nf3 {[%emt 0:02:19]} Bc8 {[%emt 0:02:35]} 33.
Nd2 {[%emt 0:01:04]} a5 {[%emt 0:01:03]} 34. bxa5 {[%emt 0:03:46]} Qxa5 {
[%emt 0:00:01]} 35. c4 {[%emt 0:02:24]} Rc7 {[%emt 0:01:25]} 36. Rf3 {[%emt 0:
03:53]} Nd7 {[%emt 0:02:39]} 37. cxb5 {[%emt 0:00:20]} Qxb5 {[%emt 0:00:13]}
38. Ra1 {[%emt 0:00:20]} Nc5 {[%emt 0:04:59]} 39. Bc4 {[%emt 0:00:23]} Qb2 {
[%emt 0:03:41]} 40. Ra2 {[%emt 0:00:00]} Qb4 {[%emt 0:00:00]} 41. Qe2 {[%emt 0:
01:21]} Rd8 {[%emt 0:07:01]} 42. Rf1 {[%emt 0:05:58]} Nb7 {[%emt 0:04:03]} 43.
Rb1 {[%emt 0:04:32]} 1/2-1/2

[Event "36th European Club Cup 2021"]
[Site "Struga"]
[Date "2021.09.23"]
[Round "6.15"]
[White "Antipov, Mikhail Al."]
[Black "Papp, Gabor"]
[Result "1-0"]
[ECO "C42"]
[WhiteElo "2607"]
[BlackElo "2599"]
[Annotator "ChessBase"]
[PlyCount "75"]
[EventDate "2021.09.18"]
[EventType "team-tourn"]
[EventCountry "MKD"]
[SourceTitle "playchess.com"]
[Source "ChessBase"]
[SourceQuality "1"]
[TimeControl "40/5400+30:1800+30"]

1. e4 {[%emt 0:00:05]} e5 {[%emt 0:00:03]} 2. Nf3 {[%emt 0:00:05]} Nf6 {
[%emt 0:00:06]} 3. Nxe5 {[%emt 0:00:05]} d6 {[%emt 0:00:04]} 4. Nf3 {[%emt 0:
00:04]} Nxe4 {[%emt 0:00:06]} 5. Bd3 {[%emt 0:00:04]} Nf6 {[%emt 0:00:37]} 6.
O-O {[%emt 0:00:08]} Be7 {[%emt 0:01:17]} 7. Re1 {[%emt 0:00:06]} O-O {[%emt 0:
00:35]} 8. Bf1 {[%emt 0:00:07]} d5 {[%emt 0:02:01]} 9. d4 {[%emt 0:00:07]} h6 {
[%emt 0:00:30]} 10. h3 {[%emt 0:05:59]} c5 {[%emt 0:00:37]} 11. Be3 {[%emt 0:
02:18]} b6 {[%emt 0:28:46]} 12. Ne5 {[%emt 0:08:54]} Bd6 {[%emt 0:01:33]} 13.
Nc3 {[%emt 0:12:18]} a6 {[%emt 0:00:45]} 14. Qf3 {[%emt 0:01:19]} Be6 {[%emt 0:
04:09]} 15. Rad1 {[%emt 0:15:39]} b5 {[%emt 0:02:26]} 16. a4 {[%emt 0:15:02]}
b4 {[%emt 0:00:32]} 17. Ne2 {[%emt 0:00:06]} c4 {[%emt 0:09:42]} 18. Ng3 {
[%emt 0:06:49]} Nbd7 {[%emt 0:04:38]} 19. Bf4 {[%emt 0:00:12]} Qc7 {[%emt 0:02:
42]} 20. b3 {[%emt 0:05:46]} Ne4 {[%emt 0:11:43]} 21. bxc4 {[%emt 0:07:44]} Nc3
{[%emt 0:02:44]} 22. Nh5 {[%emt 0:02:33]} Bxe5 {[%emt 0:07:09]} 23. Rxe5 {
[%emt 0:03:17]} Nxe5 {[%emt 0:01:35]} 24. Bxe5 {[%emt 0:00:05]} Qe7 {[%emt 0:
00:15]} 25. Bxg7 {[%emt 0:01:38]} Qg5 {[%emt 0:00:36]} 26. Be5 {[%emt 0:10:06]}
f5 {[%emt 0:00:57]} 27. Re1 {[%emt 0:00:18]} Ne4 {[%emt 0:07:41]} 28. Nf4 {
[%emt 0:00:05]} Bf7 {[%emt 0:00:03]} 29. cxd5 {[%emt 0:00:10]} Nd2 {[%emt 0:00:
31]} 30. Qd3 {[%emt 0:01:18]} Nxf1 {[%emt 0:00:04]} 31. Qxf1 {[%emt 0:00:51]}
Rac8 {[%emt 0:00:04]} 32. Re3 {[%emt 0:00:35]} Rc3 {[%emt 0:00:33]} 33. Rxc3 {
[%emt 0:00:06]} bxc3 {[%emt 0:00:04]} 34. Qxa6 {[%emt 0:00:09]} Kh7 {[%emt 0:
03:02]} 35. Qb7 {[%emt 0:00:35]} Kg8 {[%emt 0:01:35]} 36. a5 {[%emt 0:01:25]}
Qd8 {[%emt 0:00:18]} 37. a6 {[%emt 0:00:20]} Qa5 {[%emt 0:03:54]} 38. Qc6 {
[%emt 0:00:16]} 1-0